[Event "Live Chess"]
[Site "Chess.com"]
[Date "2023.09.16"]
[Round "-"]
[White "Lucas-LGM"]
[Black "RDW085"]
[Result "1-0"]
[WhiteElo "1582"]
[BlackElo "1402"]
[TimeControl "900+5"]
[EndTime "15:50:42 PDT"]
[Termination "Lucas-LGM venceu por desistência"]

1. e4 {[%clk 0:15:03]} 1... c6 {[%clk 0:15:02.1]} 2. Nc3 {[%clk 0:14:48.8]} 2...
d5 {[%clk 0:15:05.8]} 3. exd5 {[%clk 0:14:52.3]} 3... cxd5 {[%clk 0:15:10.1]} 4.
d4 {[%clk 0:14:56.9]} 4... Bf5 {[%clk 0:15:13.5]} 5. Nf3 {[%clk 0:15:01.1]} 5...
Nf6 {[%clk 0:15:16.7]} 6. Bd3 {[%clk 0:15:00.9]} 6... Bxd3 {[%clk 0:15:20.1]} 7.
Qxd3 {[%clk 0:15:05.3]} 7... Nbd7 {[%clk 0:15:24.7]} 8. Be3 {[%clk 0:15:07]}
8... a6 {[%clk 0:15:28.8]} 9. Qf5 {[%clk 0:15:06]} 9... e6 {[%clk 0:15:27.9]}
10. Qd3 {[%clk 0:15:04.2]} 10... Bd6 {[%clk 0:15:31.8]} 11. O-O {[%clk
0:15:06.6]} 11... O-O {[%clk 0:15:35.4]} 12. h3 {[%clk 0:15:10.2]} 12... Re8
{[%clk 0:15:35.7]} 13. Ne2 {[%clk 0:14:16.3]} 13... e5 {[%clk 0:15:26.9]} 14.
dxe5 {[%clk 0:14:13.6]} 14... Nxe5 {[%clk 0:15:31.8]} 15. Nxe5 {[%clk
0:14:12.2]} 15... Bxe5 {[%clk 0:15:36.7]} 16. c3 {[%clk 0:14:13.9]} 16... Ne4
{[%clk 0:15:33.9]} 17. Nd4 {[%clk 0:14:14]} 17... Bc7 {[%clk 0:15:22.1]} 18.
Rfe1 {[%clk 0:14:08]} 18... Qd6 {[%clk 0:15:16.5]} 19. Nf3 {[%clk 0:14:03]}
19... Rac8 {[%clk 0:14:45.9]} 20. Rad1 {[%clk 0:13:55.7]} 20... Nf6 {[%clk
0:14:44.2]} 21. Bd4 {[%clk 0:13:53.1]} 21... Ne4 {[%clk 0:14:31.6]} 22. b4
{[%clk 0:13:35.6]} 22... Qg6 {[%clk 0:14:34.2]} 23. Be3 {[%clk 0:13:15.5]} 23...
Red8 {[%clk 0:14:11.5]} 24. g3 {[%clk 0:12:12.3]} 24... Qh5 {[%clk 0:13:34.3]}
25. Kg2 {[%clk 0:12:12.8]} 25... Bb8 {[%clk 0:13:31.9]} 26. Qd4 {[%clk
0:11:38.9]} 26... Nxc3 {[%clk 0:13:02.3]} 27. Rc1 {[%clk 0:11:11.5]} 27... Nxa2
{[%clk 0:12:55.5]} 28. Rxc8 {[%clk 0:11:14.1]} 28... Rxc8 {[%clk 0:13:00.4]} 29.
Bg5 {[%clk 0:10:54.3]} 29... Nc3 {[%clk 0:12:43.8]} 30. Qxc3 {[%clk 0:10:48.3]}
30... Rd8 {[%clk 0:11:57.8]} 1-0

[Event "Live Chess"]
[Site "Chess.com"]
[Date "2023.09.16"]
[Round "-"]
[White "Frogstetic"]
[Black "samurai0718"]
[Result "1-0"]
[WhiteElo "2014"]
[BlackElo "1335"]
[TimeControl "900+5"]
[EndTime "15:52:51 PDT"]
[Termination "Frogstetic venceu por xeque-mate"]

1. e4 {[%clk 0:15:02.3]} 1... c5 {[%clk 0:15:02.6]} 2. Nf3 {[%clk 0:15:05.7]}
2... d6 {[%clk 0:15:04.8]} 3. g3 {[%clk 0:15:09.3]} 3... Nf6 {[%clk 0:15:05.3]}
4. d3 {[%clk 0:15:12.4]} 4... g6 {[%clk 0:15:01]} 5. Bg2 {[%clk 0:15:15.7]} 5...
Bg7 {[%clk 0:15:03]} 6. O-O {[%clk 0:15:17.9]} 6... O-O {[%clk 0:15:06.1]} 7. h3
{[%clk 0:15:21.8]} 7... e5 {[%clk 0:14:59]} 8. c3 {[%clk 0:15:25.2]} 8... Nc6
{[%clk 0:15:01.6]} 9. Nbd2 {[%clk 0:15:28.1]} 9... Qe7 {[%clk 0:15:01.2]} 10.
Re1 {[%clk 0:15:29.7]} 10... b6 {[%clk 0:14:50.4]} 11. Nf1 {[%clk 0:15:27]}
11... Bb7 {[%clk 0:14:54]} 12. Be3 {[%clk 0:14:49.3]} 12... d5 {[%clk
0:14:21.7]} 13. exd5 {[%clk 0:14:44.7]} 13... Nxd5 {[%clk 0:14:24.1]} 14. Qd2
{[%clk 0:13:30.1]} 14... Nxe3 {[%clk 0:14:14.7]} 15. Nxe3 {[%clk 0:13:21]} 15...
f5 {[%clk 0:13:47.9]} 16. Nc4 {[%clk 0:12:27]} 16... Rad8 {[%clk 0:12:50.5]} 17.
Qe2 {[%clk 0:10:22.4]} 17... Rfe8 {[%clk 0:12:23.9]} 18. Rad1 {[%clk 0:08:54.2]}
18... e4 {[%clk 0:12:11.5]} 19. dxe4 {[%clk 0:08:54]} 19... Rxd1 {[%clk
0:12:05.1]} 20. Qxd1 {[%clk 0:08:58.2]} 20... fxe4 {[%clk 0:11:55.5]} 21. Nfd2
{[%clk 0:08:59]} 21... Na5 {[%clk 0:11:29.9]} 22. Nxa5 {[%clk 0:08:57]} 22...
bxa5 {[%clk 0:11:26.5]} 23. Nxe4 {[%clk 0:08:02.9]} 23... Qe6 {[%clk 0:10:22.3]}
24. Nf6+ {[%clk 0:07:58.7]} 24... Qxf6 {[%clk 0:10:24.2]} 25. Rxe8+ {[%clk
0:08:01.5]} 25... Kf7 {[%clk 0:10:27.8]} 26. Qd7+ {[%clk 0:08:03.1]} 26... Qe7
{[%clk 0:10:29.1]} 27. Qxe7# {[%clk 0:08:05]} 1-0

[Event "Live Chess"]
[Site "Chess.com"]
[Date "2023.09.16"]
[Round "-"]
[White "stopgivingup"]
[Black "Jonas_Rodrigues"]
[Result "0-1"]
[WhiteElo "975"]
[BlackElo "1299"]
[TimeControl "900+5"]
[EndTime "15:52:55 PDT"]
[Termination "Jonas_Rodrigues venceu por desistência"]

1. c4 {[%clk 0:15:02.4]} 1... Nf6 {[%clk 0:15:01.9]} 2. Nc3 {[%clk 0:15:02.4]}
2... d5 {[%clk 0:15:05.2]} 3. cxd5 {[%clk 0:14:57.4]} 3... Nxd5 {[%clk
0:15:10.1]} 4. e4 {[%clk 0:14:50.3]} 4... Nxc3 {[%clk 0:15:07.5]} 5. bxc3 {[%clk
0:14:50]} 5... Nc6 {[%clk 0:15:09.6]} 6. d4 {[%clk 0:14:50.9]} 6... e6 {[%clk
0:15:11.3]} 7. Nf3 {[%clk 0:14:52.3]} 7... Be7 {[%clk 0:15:12.2]} 8. Bd3 {[%clk
0:14:29.1]} 8... O-O {[%clk 0:15:07.5]} 9. Be3 {[%clk 0:14:06.5]} 9... f5 {[%clk
0:15:09.1]} 10. Qd2 {[%clk 0:13:25.1]} 10... f4 {[%clk 0:14:44.7]} 11. Bxf4
{[%clk 0:13:10.8]} 11... Ba3 {[%clk 0:14:36.6]} 12. Rb1 {[%clk 0:11:16.3]} 12...
a5 {[%clk 0:14:27.8]} 13. e5 {[%clk 0:11:10.2]} 13... Ne7 {[%clk 0:14:11.8]} 14.
g4 {[%clk 0:08:30.2]} 14... Nd5 {[%clk 0:14:11.7]} 15. Bg5 {[%clk 0:06:23]}
15... Be7 {[%clk 0:13:45.5]} 16. Bh6 {[%clk 0:04:40]} 16... Rxf3 {[%clk
0:13:22.1]} 17. Ke2 {[%clk 0:03:39.8]} 17... Rxd3 {[%clk 0:13:17.7]} 18. Kxd3
{[%clk 0:03:27.9]} 18... gxh6 {[%clk 0:13:16.5]} 19. Qxh6 {[%clk 0:03:28.8]}
19... Kf7 {[%clk 0:12:43.8]} 20. Qxh7+ {[%clk 0:03:23.7]} 20... Ke8 {[%clk
0:12:47.9]} 21. Qg8+ {[%clk 0:02:29.8]} 21... Kd7 {[%clk 0:12:47.4]} 22. Qxd8+
{[%clk 0:02:26.2]} 22... Kxd8 {[%clk 0:12:52.3]} 23. Rhe1 {[%clk 0:02:11.5]}
23... Ra6 {[%clk 0:12:41.7]} 24. h4 {[%clk 0:02:14.5]} 24... Bxh4 {[%clk
0:12:43.5]} 0-1

[Event "Live Chess"]
[Site "Chess.com"]
[Date "2023.09.16"]
[Round "-"]
[White "Fellipezin"]
[Black "Ferazo"]
[Result "1-0"]
[WhiteElo "1597"]
[BlackElo "1415"]
[TimeControl "900+5"]
[EndTime "15:53:42 PDT"]
[Termination "Fellipezin venceu por xeque-mate"]

1. c4 {[%clk 0:14:55.8]} 1... c5 {[%clk 0:15:00.1]} 2. Nc3 {[%clk 0:14:55.4]}
2... Nf6 {[%clk 0:15:02]} 3. g3 {[%clk 0:14:57.2]} 3... e6 {[%clk 0:14:56.7]} 4.
Bg2 {[%clk 0:14:49.5]} 4... d5 {[%clk 0:14:58.2]} 5. cxd5 {[%clk 0:14:50.6]}
5... exd5 {[%clk 0:15:00.3]} 6. e3 {[%clk 0:14:37.7]} 6... Be7 {[%clk
0:14:53.3]} 7. Nf3 {[%clk 0:14:40.4]} 7... O-O {[%clk 0:14:48.7]} 8. O-O {[%clk
0:14:42.2]} 8... Bg4 {[%clk 0:14:45.6]} 9. d4 {[%clk 0:14:20.5]} 9... Nc6 {[%clk
0:14:12.9]} 10. Qb3 {[%clk 0:13:21.1]} 10... cxd4 {[%clk 0:13:35]} 11. Nxd4
{[%clk 0:13:19.1]} 11... Na5 {[%clk 0:11:26.1]} 12. Qb5 {[%clk 0:13:09.8]} 12...
a6 {[%clk 0:11:17.3]} 13. Qd3 {[%clk 0:13:10.6]} 13... Qd7 {[%clk 0:10:23]} 14.
Bd2 {[%clk 0:12:49.4]} 14... Nc4 {[%clk 0:10:21.6]} 15. b3 {[%clk 0:12:34.3]}
15... Nxd2 {[%clk 0:10:12.7]} 16. Qxd2 {[%clk 0:12:36.7]} 16... Bb4 {[%clk
0:10:10.4]} 17. Rac1 {[%clk 0:12:30.8]} 17... Ne4 {[%clk 0:10:10]} 18. Bxe4
{[%clk 0:12:23.2]} 18... dxe4 {[%clk 0:10:14.9]} 19. Qb2 {[%clk 0:12:01.6]}
19... Rac8 {[%clk 0:09:23.3]} 20. Nce2 {[%clk 0:11:56.9]} 20... f5 {[%clk
0:08:01.7]} 21. Nf4 {[%clk 0:10:31]} 21... Qd6 {[%clk 0:06:27.7]} 22. Nde6
{[%clk 0:10:08.7]} 22... Rxc1 {[%clk 0:06:07.4]} 23. Qxg7# {[%clk 0:10:07.9]}
1-0

[Event "Live Chess"]
[Site "Chess.com"]
[Date "2023.09.16"]
[Round "-"]
[White "Japaawz"]
[Black "abcgames2904"]
[Result "0-1"]
[WhiteElo "413"]
[BlackElo "1181"]
[TimeControl "900+5"]
[EndTime "15:53:42 PDT"]
[Termination "abcgames2904 venceu por desistência"]

1. e4 {[%clk 0:14:54.1]} 1... Nc6 {[%clk 0:15:03.2]} 2. Nf3 {[%clk 0:14:57.6]}
2... e5 {[%clk 0:15:07.7]} 3. Bc4 {[%clk 0:15:00.2]} 3... Nf6 {[%clk 0:15:11.9]}
4. O-O {[%clk 0:15:02.8]} 4... Bc5 {[%clk 0:15:14.6]} 5. Nh4 {[%clk 0:14:58.5]}
5... Nxe4 {[%clk 0:15:16.6]} 6. Qe1 {[%clk 0:14:58.4]} 6... Qxh4 {[%clk
0:15:19]} 7. g3 {[%clk 0:14:57.7]} 7... Qg4 {[%clk 0:15:10.9]} 8. Bd5 {[%clk
0:14:55.3]} 8... O-O {[%clk 0:15:07]} 9. Bxe4 {[%clk 0:14:56.6]} 9... Nd4 {[%clk
0:15:05.2]} 10. Nc3 {[%clk 0:14:38.3]} 10... d5 {[%clk 0:15:01.8]} 11. Bxd5
{[%clk 0:14:34.8]} 11... Nxc2 {[%clk 0:14:59]} 12. Qe4 {[%clk 0:13:58.6]} 12...
Qxe4 {[%clk 0:14:58.9]} 13. Nxe4 {[%clk 0:14:03.5]} 13... Bh3 {[%clk 0:15:02]}
14. Rb1 {[%clk 0:14:00.8]} 14... Bxf1 {[%clk 0:15:05]} 15. Kxf1 {[%clk
0:14:04.8]} 15... Rad8 {[%clk 0:15:08]} 16. Nc3 {[%clk 0:14:03.1]} 16... c6
{[%clk 0:15:06.8]} 17. Bc4 {[%clk 0:14:05.5]} 17... b5 {[%clk 0:15:09.8]} 18.
Bb3 {[%clk 0:14:08.1]} 18... Nd4 {[%clk 0:15:09.5]} 19. Ne4 {[%clk 0:13:55.9]}
19... Bb6 {[%clk 0:15:11.2]} 20. Bd1 {[%clk 0:13:53.5]} 20... f5 {[%clk
0:15:04.5]} 21. Ng5 {[%clk 0:13:07.6]} 21... h6 {[%clk 0:15:04.8]} 22. Bb3+
{[%clk 0:13:01.1]} 22... Nxb3 {[%clk 0:15:04.4]} 23. axb3 {[%clk 0:13:05]} 23...
Rd3 {[%clk 0:15:08]} 24. Ne6 {[%clk 0:13:06.7]} 24... Rf6 {[%clk 0:15:05.7]} 25.
Ke2 {[%clk 0:13:00.2]} 25... Rxb3 {[%clk 0:15:05.4]} 26. Nxg7 {[%clk 0:12:28]}
26... Kxg7 {[%clk 0:15:06.7]} 27. Ra1 {[%clk 0:12:32.9]} 27... a5 {[%clk
0:15:09.9]} 28. d3 {[%clk 0:12:33.5]} 28... f4 {[%clk 0:15:13.9]} 29. gxf4
{[%clk 0:12:36.6]} 29... exf4 {[%clk 0:15:18.1]} 30. Kf3 {[%clk 0:12:38.7]}
30... Rxd3+ {[%clk 0:15:21]} 31. Ke2 {[%clk 0:12:40.8]} 31... Rh3 {[%clk
0:15:18.5]} 32. b3 {[%clk 0:12:27.7]} 32... Rxh2 {[%clk 0:15:21.8]} 33. Bb2
{[%clk 0:12:32.6]} 33... Rxf2+ {[%clk 0:15:23.2]} 0-1

[Event "Live Chess"]
[Site "Chess.com"]
[Date "2023.09.16"]
[Round "-"]
[White "RDW085"]
[Black "silvaaps"]
[Result "1-0"]
[WhiteElo "1402"]
[BlackElo "760"]
[TimeControl "900+5"]
[EndTime "15:53:44 PDT"]
[Termination "RDW085 venceu por desistência"]

1. e4 {[%clk 0:15:03.8]} 1... d5 {[%clk 0:15:04.2]} 2. Nf3 {[%clk 0:15:07.7]}
2... dxe4 {[%clk 0:15:07.9]} 3. Ng5 {[%clk 0:15:11.6]} 3... f6 {[%clk 0:15:11]}
4. Nxe4 {[%clk 0:15:14.7]} 4... Bf5 {[%clk 0:15:14]} 5. Qf3 {[%clk 0:15:11.4]}
5... Bxe4 {[%clk 0:15:15.6]} 6. Qxe4 {[%clk 0:15:16.3]} 6... c6 {[%clk
0:15:20.1]} 7. Bc4 {[%clk 0:15:16.1]} 7... Nh6 {[%clk 0:15:12.6]} 8. d3 {[%clk
0:15:13.5]} 8... f5 {[%clk 0:15:15]} 9. Qe5 {[%clk 0:15:13.8]} 9... Qd6 {[%clk
0:15:16.7]} 10. Qc3 {[%clk 0:15:13.4]} 10... e6 {[%clk 0:15:14.6]} 11. Bxh6
{[%clk 0:15:15.9]} 11... gxh6 {[%clk 0:15:18.3]} 12. Qxh8 {[%clk 0:15:19.6]}
12... b5 {[%clk 0:15:20]} 13. Bb3 {[%clk 0:15:14.5]} 13... a5 {[%clk 0:15:21.5]}
14. a3 {[%clk 0:15:17.4]} 14... a4 {[%clk 0:15:25.6]} 15. Ba2 {[%clk 0:15:21.8]}
15... Nd7 {[%clk 0:15:23.6]} 16. O-O {[%clk 0:15:26.2]} 16... O-O-O {[%clk
0:15:27.7]} 17. Qc3 {[%clk 0:15:29.2]} 17... Qe7 {[%clk 0:15:19.8]} 18. Nd2
{[%clk 0:15:32.3]} 18... Qh4 {[%clk 0:15:17.5]} 19. Bxe6 {[%clk 0:15:26.8]}
19... Bd6 {[%clk 0:15:19.9]} 20. Qxc6+ {[%clk 0:15:29.3]} 20... Bc7 {[%clk
0:15:18.3]} 21. g3 {[%clk 0:15:24.2]} 21... Qxh2+ {[%clk 0:15:22.2]} 22. Kxh2
{[%clk 0:15:28.1]} 1-0

[Event "Live Chess"]
[Site "Chess.com"]
[Date "2023.09.16"]
[Round "-"]
[White "Larissa1413"]
[Black "Gustavoksbr"]
[Result "0-1"]
[WhiteElo "1913"]
[BlackElo "1901"]
[TimeControl "900+5"]
[EndTime "15:53:46 PDT"]
[Termination "Gustavoksbr venceu por xeque-mate"]

1. d4 {[%clk 0:14:40.3]} 1... Nf6 {[%clk 0:15:00.7]} 2. c4 {[%clk 0:14:40.1]}
2... g6 {[%clk 0:15:03.7]} 3. Nc3 {[%clk 0:14:42.1]} 3... d5 {[%clk 0:15:07.8]}
4. cxd5 {[%clk 0:14:43.9]} 4... Nxd5 {[%clk 0:15:12.7]} 5. e4 {[%clk 0:14:46]}
5... Nxc3 {[%clk 0:15:16.7]} 6. bxc3 {[%clk 0:14:47.8]} 6... c5 {[%clk
0:15:21.2]} 7. Nf3 {[%clk 0:14:49.2]} 7... Bg7 {[%clk 0:15:21.6]} 8. e5 {[%clk
0:14:42.6]} 8... Nc6 {[%clk 0:15:11.4]} 9. Bb5 {[%clk 0:14:43.8]} 9... O-O
{[%clk 0:15:04.6]} 10. Bxc6 {[%clk 0:14:34.8]} 10... bxc6 {[%clk 0:15:09.5]} 11.
O-O {[%clk 0:14:37.1]} 11... Bg4 {[%clk 0:15:06.8]} 12. Re1 {[%clk 0:14:36.8]}
12... Bxf3 {[%clk 0:14:55.6]} 13. gxf3 {[%clk 0:14:28.9]} 13... e6 {[%clk
0:14:56]} 14. Ba3 {[%clk 0:14:28]} 14... Qg5+ {[%clk 0:13:51.9]} 15. Kh1 {[%clk
0:14:17.6]} 15... Rfb8 {[%clk 0:13:31.7]} 16. Rg1 {[%clk 0:13:53.6]} 16... Qh4
{[%clk 0:13:29.6]} 17. Qe2 {[%clk 0:13:31.7]} 17... cxd4 {[%clk 0:13:27.2]} 18.
Rg4 {[%clk 0:13:25.5]} 18... d3 {[%clk 0:13:14]} 19. Qe3 {[%clk 0:12:37.6]}
19... Qh5 {[%clk 0:12:54.2]} 20. Bd6 {[%clk 0:12:25.7]} 20... Rb5 {[%clk
0:11:16.9]} 21. Qxd3 {[%clk 0:11:29.2]} 21... Rd8 {[%clk 0:10:10.7]} 22. Qe3
{[%clk 0:10:10.1]} 22... Bxe5 {[%clk 0:09:21.3]} 23. Bxe5 {[%clk 0:10:07.1]}
23... Rxe5 {[%clk 0:09:23.8]} 24. Qxa7 {[%clk 0:09:47.2]} 24... Rd2 {[%clk
0:09:12.9]} 25. Rf1 {[%clk 0:08:29.7]} 25... Ree2 {[%clk 0:08:45]} 26. Kg2
{[%clk 0:08:05.1]} 26... Qd5 {[%clk 0:08:30.3]} 27. Qb8+ {[%clk 0:06:59.6]}
27... Kg7 {[%clk 0:08:29.1]} 28. Qb6 {[%clk 0:06:28.5]} 28... Rxa2 {[%clk
0:08:10.4]} 29. c4 {[%clk 0:06:00]} 29... Qd2 {[%clk 0:07:38]} 30. h4 {[%clk
0:05:35.3]} 30... h5 {[%clk 0:07:29.7]} 31. Rg3 {[%clk 0:05:34.1]} 31... Rc2
{[%clk 0:07:12.6]} 32. Qa7 {[%clk 0:04:14.4]} 32... Qf4 {[%clk 0:06:31.1]} 33.
Kh3 {[%clk 0:03:49.2]} 33... Rxc4 {[%clk 0:05:57.7]} 34. Kg2 {[%clk 0:03:17.3]}
34... Qxh4 {[%clk 0:05:45.5]} 35. Qa1+ {[%clk 0:03:17.1]} 35... Qd4 {[%clk
0:05:45.6]} 36. Qxd4+ {[%clk 0:03:08.1]} 36... Rxd4 {[%clk 0:05:48.5]} 37. Rc1
{[%clk 0:03:10.6]} 37... Rdd2 {[%clk 0:05:47]} 38. Rxc6 {[%clk 0:03:05.6]} 38...
Rxf2+ {[%clk 0:05:50.4]} 39. Kg1 {[%clk 0:03:07.6]} 39... Rfe2 {[%clk
0:05:33.2]} 40. Kf1 {[%clk 0:03:07.5]} 40... Rh2 {[%clk 0:05:32.8]} 41. Kg1
{[%clk 0:03:08.1]} 41... h4 {[%clk 0:05:35.2]} 42. Rg4 {[%clk 0:03:03.7]} 42...
h3 {[%clk 0:05:36.2]} 43. Rc7 {[%clk 0:02:57.8]} 43... Rhe2 {[%clk 0:05:29.2]}
44. Kf1 {[%clk 0:02:53.6]} 44... h2 {[%clk 0:05:27.2]} 45. Rh4 {[%clk
0:02:53.4]} 45... Rf2+ {[%clk 0:05:25.8]} 46. Ke1 {[%clk 0:02:55.1]} 46... Rde2+
{[%clk 0:05:29.5]} 47. Kd1 {[%clk 0:02:57.5]} 47... Rg2 {[%clk 0:05:30.7]} 48.
Rc8 {[%clk 0:02:40.3]} 48... Ra2 {[%clk 0:05:29.2]} 49. Rc1 {[%clk 0:02:01.5]}
49... Rg1# {[%clk 0:05:30.4]} 0-1

[Event "Live Chess"]
[Site "Chess.com"]
[Date "2023.09.16"]
[Round "-"]
[White "MNPedroh"]
[Black "angelinho2006"]
[Result "0-1"]
[WhiteElo "1854"]
[BlackElo "2094"]
[TimeControl "900+5"]
[EndTime "15:54:09 PDT"]
[Termination "angelinho2006 venceu por desistência"]

1. e4 {[%clk 0:15:04.1]} 1... c5 {[%clk 0:15:00.1]} 2. Nf3 {[%clk 0:15:08.3]}
2... d6 {[%clk 0:15:04]} 3. c3 {[%clk 0:15:12.5]} 3... Nf6 {[%clk 0:15:07.8]} 4.
Be2 {[%clk 0:15:15.7]} 4... Nc6 {[%clk 0:15:07.6]} 5. d4 {[%clk 0:15:20]} 5...
cxd4 {[%clk 0:14:46.5]} 6. cxd4 {[%clk 0:15:24.9]} 6... Nxe4 {[%clk 0:14:17]} 7.
d5 {[%clk 0:15:19.9]} 7... Qa5+ {[%clk 0:14:19.4]} 8. Nc3 {[%clk 0:15:12]} 8...
Nxc3 {[%clk 0:14:02.9]} 9. bxc3 {[%clk 0:15:16.9]} 9... Nd8 {[%clk 0:13:41.7]}
10. O-O {[%clk 0:14:38.9]} 10... g6 {[%clk 0:13:42.9]} 11. Qd4 {[%clk 0:13:45]}
11... f6 {[%clk 0:13:21]} 12. Bd2 {[%clk 0:13:14.2]} 12... Bg7 {[%clk
0:13:19.5]} 13. c4 {[%clk 0:12:42.2]} 13... Qc5 {[%clk 0:13:23.6]} 14. Qb2
{[%clk 0:11:57.5]} 14... O-O {[%clk 0:13:21.3]} 15. Be3 {[%clk 0:11:42.5]} 15...
Qc7 {[%clk 0:13:23.3]} 16. Rac1 {[%clk 0:11:35.7]} 16... b6 {[%clk 0:13:27.4]}
17. Qd2 {[%clk 0:11:15.2]} 17... e5 {[%clk 0:11:59.1]} 18. Bh6 {[%clk
0:11:12.4]} 18... Nb7 {[%clk 0:11:41.8]} 19. Rfe1 {[%clk 0:10:50.9]} 19... Nc5
{[%clk 0:11:39.6]} 20. Bf1 {[%clk 0:10:43.8]} 20... Bg4 {[%clk 0:10:37.4]} 21.
Bxg7 {[%clk 0:09:56.1]} 21... Kxg7 {[%clk 0:10:38.4]} 22. Re3 {[%clk 0:09:29.8]}
22... Bxf3 {[%clk 0:10:39.8]} 23. Rxf3 {[%clk 0:09:34.7]} 23... Qe7 {[%clk
0:10:34.8]} 24. Rh3 {[%clk 0:09:35.8]} 24... f5 {[%clk 0:10:31.6]} 25. Qh6+
{[%clk 0:09:04.4]} 25... Kg8 {[%clk 0:10:34.5]} 26. Rcc3 {[%clk 0:09:08.2]}
26... Ne4 {[%clk 0:10:30.1]} 27. Rce3 {[%clk 0:08:43.7]} 27... Qg7 {[%clk
0:10:29.4]} 28. Qh4 {[%clk 0:08:14.3]} 28... g5 {[%clk 0:07:53.3]} 29. Qh5
{[%clk 0:08:15.2]} 29... Nf6 {[%clk 0:07:52.9]} 30. Qd1 {[%clk 0:07:57.7]} 30...
g4 {[%clk 0:07:56.2]} 31. Rh4 {[%clk 0:07:59.9]} 31... Qg5 {[%clk 0:07:44.3]}
32. g3 {[%clk 0:08:03.6]} 32... f4 {[%clk 0:06:30.5]} 33. Re1 {[%clk 0:07:54.9]}
33... h5 {[%clk 0:06:22.9]} 34. Be2 {[%clk 0:07:46.9]} 34... Rf7 {[%clk
0:05:53]} 35. Bd3 {[%clk 0:07:39.9]} 35... Kg7 {[%clk 0:05:08.8]} 36. Qd2 {[%clk
0:07:34.8]} 36... Re8 {[%clk 0:04:50]} 37. Be4 {[%clk 0:07:28.1]} 37... Rc7
{[%clk 0:04:43.3]} 0-1

[Event "Live Chess"]
[Site "Chess.com"]
[Date "2023.09.16"]
[Round "-"]
[White "GustavoFarinha"]
[Black "Yurxx21"]
[Result "0-1"]
[WhiteElo "1697"]
[BlackElo "1491"]
[TimeControl "900+5"]
[EndTime "15:54:23 PDT"]
[Termination "Yurxx21 venceu por desistência"]

1. e4 {[%clk 0:15:02.1]} 1... c5 {[%clk 0:15:02.1]} 2. Nf3 {[%clk 0:15:05.7]}
2... d6 {[%clk 0:15:06.6]} 3. Bb5+ {[%clk 0:15:09.8]} 3... Bd7 {[%clk
0:15:09.7]} 4. Bxd7+ {[%clk 0:15:13.7]} 4... Nxd7 {[%clk 0:15:14.6]} 5. O-O
{[%clk 0:15:16.3]} 5... Ngf6 {[%clk 0:15:18.9]} 6. d3 {[%clk 0:15:19.8]} 6... e6
{[%clk 0:15:20.6]} 7. Nc3 {[%clk 0:15:23.6]} 7... a6 {[%clk 0:15:23]} 8. Bg5
{[%clk 0:15:27.5]} 8... Be7 {[%clk 0:15:27.3]} 9. a4 {[%clk 0:15:30.6]} 9... h6
{[%clk 0:15:31.3]} 10. Bh4 {[%clk 0:15:33.5]} 10... O-O {[%clk 0:15:35]} 11. d4
{[%clk 0:15:29.7]} 11... cxd4 {[%clk 0:15:25.2]} 12. Nxd4 {[%clk 0:15:29.1]}
12... Rc8 {[%clk 0:15:15.2]} 13. f4 {[%clk 0:14:45.9]} 13... Nh7 {[%clk
0:15:11.6]} 14. Bxe7 {[%clk 0:14:48]} 14... Qxe7 {[%clk 0:15:16.5]} 15. Qd3
{[%clk 0:14:14]} 15... e5 {[%clk 0:15:08.2]} 16. fxe5 {[%clk 0:14:13.4]} 16...
dxe5 {[%clk 0:15:13.1]} 17. Nf3 {[%clk 0:14:16.2]} 17... Rfd8 {[%clk 0:15:17.5]}
18. Qe2 {[%clk 0:14:10.1]} 18... Ng5 {[%clk 0:14:57.7]} 19. Nd5 {[%clk
0:13:44.4]} 19... Nxf3+ {[%clk 0:14:43]} 20. Rxf3 {[%clk 0:13:42.7]} 20... Qc5+
{[%clk 0:14:19]} 21. Qf2 {[%clk 0:13:13.7]} 21... Qxf2+ {[%clk 0:14:04.2]} 22.
Rxf2 {[%clk 0:13:17.1]} 22... Kf8 {[%clk 0:13:58.2]} 23. Raf1 {[%clk 0:13:18.9]}
23... f6 {[%clk 0:13:50.8]} 24. c3 {[%clk 0:12:50.5]} 24... Nc5 {[%clk
0:13:24.9]} 25. a5 {[%clk 0:12:15.4]} 25... Nxe4 {[%clk 0:13:14]} 26. Nb6 {[%clk
0:11:59.5]} 26... Nxf2 {[%clk 0:12:57.2]} 27. Nxc8 {[%clk 0:11:55.3]} 27... Nh3+
{[%clk 0:12:57.4]} 28. gxh3 {[%clk 0:11:55.7]} 28... Rxc8 {[%clk 0:13:00.8]} 29.
Rd1 {[%clk 0:11:58]} 29... Ke7 {[%clk 0:12:55.5]} 30. Kf2 {[%clk 0:12:01.8]}
30... Rc5 {[%clk 0:12:59.8]} 31. Ra1 {[%clk 0:12:01.1]} 31... Rd5 {[%clk
0:12:56.6]} 32. Ke3 {[%clk 0:11:54.5]} 32... Rb5 {[%clk 0:12:54.6]} 33. b4
{[%clk 0:11:51.7]} 33... b6 {[%clk 0:12:57.6]} 34. axb6 {[%clk 0:11:44.3]} 34...
Rxb6 {[%clk 0:13:00.8]} 35. Rg1 {[%clk 0:10:56.5]} 35... g5 {[%clk 0:12:47.5]}
36. Ke4 {[%clk 0:10:14]} 36... Ke6 {[%clk 0:12:25]} 37. Rf1 {[%clk 0:09:50]}
37... Rc6 {[%clk 0:12:22.2]} 38. Rf3 {[%clk 0:09:49.9]} 38... Rc4+ {[%clk
0:12:13.9]} 39. Kd3 {[%clk 0:09:44.3]} 39... e4+ {[%clk 0:12:14.2]} 40. Kxc4
{[%clk 0:09:44.8]} 40... exf3 {[%clk 0:12:18.2]} 41. Kd3 {[%clk 0:09:49.5]}
41... f5 {[%clk 0:12:09.8]} 42. Ke3 {[%clk 0:09:49.6]} 42... g4 {[%clk
0:12:12.1]} 43. hxg4 {[%clk 0:09:52.2]} 43... fxg4 {[%clk 0:12:17]} 44. c4
{[%clk 0:09:56.2]} 44... h5 {[%clk 0:12:17.3]} 45. b5 {[%clk 0:09:58.2]} 45...
axb5 {[%clk 0:12:20.1]} 46. cxb5 {[%clk 0:10:02.8]} 46... Kd6 {[%clk 0:12:24.1]}
47. Kf2 {[%clk 0:10:05]} 47... Kc5 {[%clk 0:12:27.2]} 48. Kg3 {[%clk 0:10:09.1]}
48... Kxb5 {[%clk 0:12:31.2]} 49. Kf2 {[%clk 0:10:13.6]} 49... Kc4 {[%clk
0:12:35]} 50. Kg3 {[%clk 0:10:17.9]} 50... Kd4 {[%clk 0:12:33.4]} 51. Kf2 {[%clk
0:10:21.5]} 51... Ke4 {[%clk 0:12:35.5]} 52. Ke1 {[%clk 0:10:22]} 52... Ke3
{[%clk 0:12:38.4]} 53. Kf1 {[%clk 0:10:26]} 53... h4 {[%clk 0:12:40.2]} 54. Kg1
{[%clk 0:10:29.6]} 54... g3 {[%clk 0:12:44.2]} 55. hxg3 {[%clk 0:10:34.1]} 55...
hxg3 {[%clk 0:12:48.6]} 56. Kf1 {[%clk 0:10:38.6]} 56... g2+ {[%clk 0:12:46.3]}
0-1